bitfinex/quotes_ETHUSD_20241122
["timestamp","ask_amount","ask_price","bid_price","bid_amount"]
[1732276252535,6.10344168,3334.8,3334.1,0.2991]
[1732276253227,3.10476168,3334.8,3334.1,0.2991]
[1732276253540,0.78682017,3334.7,3334.1,0.2991]
[1732276254237,3.78561017,3334.7,3334.1,0.2991]
[1732276254411,3.52470153,3334.5,3333.2,0.2991]
[1732276254750,3.52470153,3334.5,3332.6,3.0]
[1732276254751,4.29304172,3334.5,3333.4,0.2991]
[1732276254911,7.29199172,3334.5,3333.6,0.2991]
[1732276255251,1.02909017,3334.4,3333.6,0.2991]
[1732276255743,1.02909017,3334.4,3333.7,0.705]
[1732276255902,1.19586015,3334.8,3333.8,0.4059]
[1732276256109,0.37316015,3334.8,3333.9,0.2991]
[1732276256437,0.37316015,3334.8,3333.1,2.73160153]
[1732276256438,0.68315298,3334.7,3334.0,0.705]
[1732276256743,0.37316015,3334.8,3334.1,0.4059]
[1732276257044,3.37184015,3334.8,3334.1,0.4059]
[1732276257341,0.43718402,3334.7,3334.1,0.4059]
[1732276258209,0.24599674,3334.6,3334.1,0.4059]
[1732276258411,3.37189015,3334.8,3334.1,0.4059]
[1732276258734,0.2460258,3334.7,3334.1,0.4059]
[1732276259449,3.2448658,3334.7,3334.1,0.4059]
[1732276259620,0.7078284,3334.6,3334.1,0.4059]
[1732276259937,0.7078284,3334.6,3333.4,0.2991]
[1732276259938,0.7529,3334.5,3333.4,0.2991]
[1732276260238,3.69355441,3334.4,3333.6,0.2991]
[1732276260959,2.99928,3334.2,3333.6,0.2991]
[1732276261140,2.99937,3334.1,3333.7,0.2991]
[1732276261334,0.59985,3334.0,3333.7,0.2991]
[1732276261749,3.5993,3334.0,3333.5,0.4059]
[1732276261952,2.99962,3333.8,3333.5,0.4059]
[1732276262249,2.99967,3333.7,3333.3,0.4059]
[1732276262548,3.8133,3334.0,3333.3,0.4059]
[1732276262749,0.35455015,3333.9,3333.3,0.4059]
[1732276263160,3.0,3333.4,3332.4,0.4059]
[1732276263361,2.73160153,3333.8,3332.5,0.2991]
[1732276263652,0.7621,3333.4,3332.7,0.2991]
[1732276263817,3.00005,3333.3,3332.7,0.2991]
[1732276264637,7.16283495,3333.4,3332.7,0.2991]
[1732276264854,0.24575956,3333.3,3332.7,0.2991]
[1732276265062,0.8289,3333.6,3332.6,0.4059]
[1732276265240,0.60181207,3333.5,3332.6,0.4059]
[1732276265560,3.35590015,3333.5,3332.6,0.4059]
[1732276266055,2.99996,3333.4,3332.6,0.4059]
[1732276266657,3.00053,3332.8,3332.3,0.4059]
[1732276266953,3.0,3332.8,3332.3,0.4059]
[1732276267142,3.00057,3332.7,3332.3,0.4059]
[1732276267654,5.73199153,3332.9,3332.3,0.4059]
[1732276267655,3.00066,3332.6,3332.3,0.4059]
[1732276267854,0.300066,3332.5,3332.3,0.4059]
[1732276268434,5.73202153,3332.9,3332.3,0.4059]
[1732276268861,8.73249153,3332.9,3332.3,0.4059]
[1732276269268,5.73202153,3332.9,3332.3,0.4059]
[1732276269469,3.00049,3332.8,3332.3,0.4059]
[1732276269650,0.376909,3332.8,3332.3,0.4059]
[1732276270212,3.00025,3333.1,3332.3,0.4059]
[1732276270481,3.63562602,3333.3,3332.3,0.4059]
[1732276270641,2.99967,3333.7,3332.3,0.4059]
[1732276270840,0.7877,3334.5,3332.3,0.4059]
[1732276270841,2.99994,3333.4,3332.3,0.4059]
[1732276271068,2.99996,3333.4,3332.3,0.4059]
[1732276272281,0.55,3333.7,3332.3,0.4059]
[1732276272455,2.99983,3333.6,3332.3,0.4059]
[1732276272654,0.70691315,3333.6,3332.3,0.4059]
[1732276272965,2.99957,3333.9,3332.3,0.4059]
[1732276273151,2.99958,3333.8,3332.3,0.4059]
[1732276274344,3.55,3334.0,3332.3,0.4059]
[1732276274540,2.73160153,3334.1,3332.4,0.03000446]
[1732276274845,2.73160153,3334.1,3332.5,0.4059]
[1732276275189,6.16990418,3334.4,3332.7,0.4059]
[1732276275395,2.73160153,3334.4,3332.7,0.4059]
[1732276276281,5.73064153,3334.4,3332.7,0.4059]
[1732276276671,0.55,3334.3,3332.7,0.4059]
[1732276280188,3.54913,3334.3,3332.8,0.2991]
[1732276280357,1.47796515,3334.3,3333.0,0.4059]
[1732276280873,0.55,3334.5,3333.0,0.4059]
[1732276281548,0.55,3334.7,3333.0,0.4059]
[1732276281751,0.55,3334.7,3333.2,0.705]
[1732276281949,6.73021153,3334.9,3333.3,0.705]
[1732276282192,3.73160153,3334.9,3333.4,0.4059]
[1732276282377,4.78431668,3334.9,3333.4,0.4059]
[1732276283141,0.24526286,3334.8,3333.4,0.4059]
[1732276283437,0.55,3334.8,3333.4,0.4059]
[1732276283815,3.54868,3334.8,3333.4,0.4059]
[1732276284020,1.38329967,3334.8,3333.4,0.4059]
[1732276285226,1.38329967,3334.8,3333.6,0.4059]
[1732276286754,3.73160153,3334.9,3333.6,0.4059]
[1732276286755,1.0,3334.9,3333.6,0.4059]
[1732276286891,1.0,3334.9,3333.8,0.4059]
[1732276288491,1.0,3334.9,3333.9,0.2991]
[1732276288689,1.0,3334.9,3334.1,0.4059]
[1732276288918,1.0,3334.9,3334.3,0.4059]
[1732276289118,1.0,3334.9,3334.5,0.4059]
[1732276290231,1.0,3334.9,3334.8,0.2991]
[1732276290395,1.0,3334.9,3334.8,0.705]
[1732276294002,1.0,3334.9,3334.5,0.4059]
[1732276294279,1.0,3334.9,3332.9,3.30776141]
[1732276294280,0.37316015,3334.8,3333.1,0.4059]
[1732276294744,0.37316015,3334.8,3333.3,0.4059]
[1732276295120,0.37316015,3334.8,3333.6,0.2991]
[1732276295344,0.78842117,3334.7,3333.6,0.2991]
[1732276296144,3.5200227,3334.7,3333.6,0.2991]
[1732276296351,3.54893,3334.6,3333.6,0.2991]
[1732276296640,2.99898,3334.5,3333.6,0.2991]
[1732276296842,4.77058327,3334.4,3333.6,0.2991]
[1732276297043,7.5021848,3334.4,3333.5,0.4059]
[1732276297213,6.49539153,3334.4,3333.5,0.4059]
[1732276297415,3.49630153,3334.4,3333.5,0.4059]
[1732276297642,0.55,3334.6,3333.5,0.4059]
[1732276298155,2.99896,3334.5,3333.5,0.4059]
[1732276298453,1.00359215,3334.4,3333.5,0.4059]
[1732276298750,0.55,3334.6,3333.5,0.4059]
[1732276298751,2.99895,3334.5,3333.5,0.4059]
[1732276299049,2.99909,3334.4,3333.5,0.4059]
[1732276299233,0.55,3333.9,3333.1,0.4059]
[1732276299438,3.54949,3333.9,3333.1,0.4059]
[1732276300215,2.99977,3333.6,3332.1,0.2991]
[1732276300421,2.99988,3333.5,3332.2,0.4059]
[1732276300730,5.99981,3333.5,3332.2,0.4059]
[1732276301037,2.99988,3333.5,3332.2,0.4059]
[1732276301248,4.01038815,3333.5,3332.2,0.4059]
[1732276302755,1.01050815,3333.5,3332.2,0.4059]
[1732276303316,0.55,3333.7,3332.2,0.4059]
[1732276303519,3.0,3333.6,3332.2,0.4059]
[1732276304835,2.99978,3333.6,3332.2,0.4059]
[1732276305037,2.99968,3333.7,3332.2,0.4059]
[1732276306421,2.99976,3333.6,3332.2,0.4059]
[1732276307261,0.776,3333.5,3332.2,0.4059]
[1732276307921,0.95550015,3333.7,3332.2,0.4059]
[1732276308757,3.50690153,3333.9,3332.2,0.4059]
[1732276308932,4.51066518,3334.2,3332.4,0.4059]
[1732276309136,3.50000153,3334.5,3332.6,3.0]
[1732276309435,3.50000153,3334.5,3332.8,0.4059]
[1732276310368,3.50000153,3334.5,3333.1,0.2991]
[1732276310664,3.50000153,3334.5,3333.4,0.4059]
[1732276311165,6.49897153,3334.5,3333.4,0.4059]
[1732276312126,2.99919,3334.3,3333.4,0.4059]
[1732276312476,6.68064768,3334.2,3333.4,0.4059]
[1732276312955,0.7996,3334.0,3332.9,0.2991]
[1732276313520,2.73160153,3333.9,3332.9,0.2991]
[1732276313762,0.65306615,3333.8,3332.9,0.2991]
[1732276314565,0.65306615,3333.8,3333.1,0.2991]
[1732276314723,0.55,3334.3,3333.2,0.4059]
[1732276314928,0.55,3334.3,3333.2,0.705]
[1732276315130,3.7996,3334.4,3333.2,0.705]
[1732276315331,2.99872,3334.8,3333.4,0.4059]
[1732276315332,3.50270153,3334.8,3333.4,0.4059]
[1732276315531,0.33111886,3334.7,3333.4,0.4059]
[1732276316877,0.55,3334.6,3333.4,0.4059]
[1732276317179,0.55,3334.6,3333.5,0.2991]
[1732276317463,0.73825204,3334.5,3333.6,0.4059]
[1732276317829,0.73825204,3334.5,3333.7,0.4059]
[1732276318027,3.52880153,3335.4,3334.0,0.4059]
[1732276318275,3.52880153,3335.4,3333.1,3.0]
[1732276318276,0.31241444,3335.5,3334.3,0.2991]
[1732276318567,3.52880153,3336.0,3334.5,0.705]
[1732276318726,1.19742616,3335.9,3334.7,0.2991]
[1732276318926,0.95237815,3335.9,3334.8,0.705]
[1732276319152,0.44811797,3335.8,3334.8,0.705]
[1732276319473,0.44811797,3335.8,3335.0,0.4059]
[1732276319633,3.50890153,3336.3,3335.0,0.4059]
[1732276320760,2.9975,3336.2,3335.0,0.4059]
[1732276321191,2.73160153,3336.0,3335.0,0.4059]
[1732276321405,0.27316015,3335.9,3335.0,0.4059]
[1732276323782,3.50890153,3336.3,3335.0,0.4059]
[1732276323989,2.9972,3336.5,3335.0,0.4059]
[1732276323990,2.73160153,3336.6,3335.0,0.4059]
[1732276324193,2.73160153,3336.9,3335.2,0.4059]
[1732276324503,2.73160153,3336.9,3335.2,0.43587896]
[1732276324673,0.7513,3337.0,3335.2,0.43587896]
[1732276324995,2.99628,3337.5,3335.3,0.4059]
[1732276324996,2.73160153,3337.1,3335.3,0.4059]
[1732276325160,2.73160153,3337.1,3335.5,0.4059]
[1732276326202,0.7954,3337.3,3335.5,0.4059]
[1732276326203,2.73160153,3336.8,3335.5,0.4059]
[1732276326365,0.27316015,3336.7,3335.5,0.4059]
[1732276327308,3.28160153,3337.1,3335.5,0.4059]
[1732276327662,3.0,3337.5,3335.7,3.13750153]
[1732276327863,6.80380658,3337.7,3335.8,3.02997117]
[1732276327864,2.73160153,3337.7,3335.8,3.02997117]
[1732276328164,2.99591,3337.9,3335.8,3.02997117]
[1732276328165,2.99597,3337.9,3336.2,0.4059]
[1732276328364,0.377921,3337.8,3336.2,0.4059]
[1732276329088,3.373901,3337.8,3336.2,0.4059]
[1732276329303,0.377921,3337.8,3336.2,0.4059]
[1732276329702,0.377921,3337.8,3336.4,0.4059]
[1732276329894,2.73160153,3338.0,3336.4,0.4059]
[1732276330201,6.52606153,3338.3,3336.4,0.4059]
[1732276330413,2.73160153,3338.3,3336.6,0.4059]
[1732276330594,0.60391221,3338.2,3336.8,0.4059]
[1732276330900,2.73160153,3338.3,3336.7,0.37355208]
[1732276330901,2.73160153,3338.6,3336.9,0.43586344]
[1732276331109,2.73160153,3338.9,3337.1,0.4059]
[1732276331412,2.73160153,3338.9,3337.1,0.43585953]
[1732276331715,5.72667153,3338.9,3337.1,0.4059]
[1732276331910,5.72667153,3338.9,3337.3,0.4059]
[1732276331911,3.67485545,3338.8,3337.3,0.4059]
[1732276332067,2.99523,3338.7,3337.3,0.4059]
[1732276332267,3.67485545,3338.8,3337.3,0.4059]
[1732276332497,1.047225,3338.7,3337.3,0.4059]
[1732276332698,4.042405,3338.7,3337.3,0.4059]
[1732276332883,1.047225,3338.7,3337.3,0.4059]
[1732276333083,6.50470451,3338.5,3337.3,0.4059]
[1732276333801,2.99556,3338.3,3337.3,0.4059]
[1732276334195,2.99577,3338.1,3337.3,0.4059]
[1732276334377,2.99556,3338.3,3337.3,0.4059]
[1732276334787,0.55,3338.2,3337.3,0.4059]
[1732276334976,0.55,3338.0,3337.3,0.4059]
[1732276335386,0.55,3338.3,3337.3,0.4059]
[1732276335588,3.5455,3338.4,3337.3,0.4059]
[1732276335909,1.00502245,3338.3,3337.3,0.4059]
[1732276336065,2.9952,3338.7,3337.3,0.4059]
[1732276336706,6.50434451,3338.9,3337.3,0.4059]
[1732276336707,5.99509,3338.8,3337.3,0.4059]
[1732276336910,3.50933451,3338.9,3337.3,0.4059]
[1732276337073,3.50933451,3338.9,3337.4,0.4059]
[1732276337274,0.65043045,3338.8,3337.4,0.4059]
[1732276337613,5.99488,3339.1,3337.4,0.4059]
[1732276337817,3.50933451,3339.3,3337.4,0.4059]
[1732276337968,4.33143451,3339.8,3337.8,0.4059]
[1732276338173,2.99438,3339.6,3338.0,0.4059]
[1732276338903,2.99434,3339.7,3338.0,0.4059]
[1732276339427,0.55,3339.6,3338.0,0.4059]
[1732276339573,0.55,3339.4,3338.0,0.4059]
[1732276340415,0.55,3339.4,3338.0,0.43585246]
[1732276340583,0.55,3339.4,3338.1,0.4059]
[1732276341118,0.55,3339.4,3338.3,0.4059]
[1732276341918,0.55,3339.2,3338.3,0.4059]
[1732276342074,1.6336102,3339.2,3338.3,0.4059]
[1732276343586,0.55,3339.3,3338.3,0.4059]
[1732276343919,3.54458,3339.4,3338.3,0.4059]
[1732276344087,2.99448,3339.5,3338.3,0.4059]
[1732276344088,0.55,3339.2,3338.3,0.4059]
[1732276344484,0.299448,3339.4,3338.3,0.4059]
[1732276344485,0.55,3339.3,3338.3,0.4059]
[1732276345323,2.99514,3338.8,3338.3,0.4059]
[1732276345475,3.54518,3338.7,3338.3,0.4059]
[1732276345812,0.55,3338.8,3338.3,0.4059]
[1732276346522,2.9951,3338.8,3338.3,0.4059]
[1732276346703,0.55,3338.9,3338.3,0.4059]
[1732276348826,3.545,3338.9,3338.3,0.4059]
[1732276349011,0.55,3338.7,3338.3,0.4059]
[1732276349212,4.25062845,3338.7,3338.3,0.4059]
[1732276349526,3.54518,3338.7,3338.3,0.4059]
[1732276350079,0.55,3338.9,3338.3,0.4059]
[1732276350276,3.545,3338.9,3338.3,0.4059]
[1732276350510,4.54991645,3338.9,3338.3,0.4059]
[1732276351014,1.55491645,3338.9,3338.3,0.4059]
[1732276351225,2.99464,3339.3,3338.3,0.4059]
[1732276351501,2.99464,3339.3,3338.4,0.2991]
[1732276351703,2.99464,3339.3,3338.5,0.705]
[1732276351924,2.99473,3339.2,3338.5,0.705]
[1732276352234,0.94987045,3339.1,3338.5,0.705]
[1732276352398,2.99464,3339.3,3338.5,0.705]
[1732276352734,0.55,3339.2,3338.5,0.705]
[1732276353082,3.54478,3339.2,3338.5,0.705]
[1732276354388,2.99484,3339.1,3338.5,0.705]
[1732276354582,1.00489545,3339.1,3338.5,0.705]
[1732276354818,3.54491,3339.0,3338.5,0.705]
[1732276355017,3.99973545,3339.1,3338.5,0.705]
[1732276355323,2.995,3338.9,3338.5,0.705]
[1732276355486,2.995,3338.9,3338.5,0.4059]
[1732276355687,2.99484,3339.1,3338.5,0.4059]
[1732276356298,2.99496,3339.0,3338.5,0.4059]
[1732276356501,3.86641602,3339.0,3338.5,0.4059]
[1732276356831,0.87145602,3339.0,3338.5,0.4059]
[1732276357609,2.72476022,3339.2,3338.5,0.4059]
[1732276357610,5.71951022,3339.2,3338.5,0.4059]
[1732276357824,2.72476022,3339.2,3338.5,0.4059]
[1732276358227,2.99489,3339.1,3338.5,0.4059]
[1732276358685,2.99492,3339.0,3338.5,0.4059]
[1732276359827,5.71952022,3339.2,3338.5,0.4059]
[1732276360127,6.29147224,3339.2,3338.5,0.4059]
[1732276360339,3.29671224,3339.2,3338.5,0.4059]
[1732276360985,2.99453,3339.5,3338.5,0.4059]
[1732276361189,6.52881022,3340.0,3338.7,0.2991]
[1732276361422,6.52881022,3340.0,3338.0,3.0]
[1732276361423,5.71878022,3340.0,3338.9,0.2991]
[1732276361633,0.98408085,3339.9,3339.0,0.4059]
[1732276361800,0.98408085,3339.9,3339.0,0.705]
[1732276362113,3.97823085,3339.9,3339.0,0.705]
[1732276362393,2.72476022,3339.7,3339.0,0.705]
[1732276362595,2.9944,3339.6,3339.0,0.705]
[1732276362795,2.99453,3339.5,3339.0,0.705]
[1732276363023,2.72476022,3339.7,3339.0,0.705]
[1732276363024,3.54437,3339.6,3339.0,0.705]
[1732276363200,2.72476022,3340.0,3339.0,0.705]
[1732276363821,5.71883022,3340.0,3339.0,0.705]
[1732276364018,2.99428,3339.7,3339.0,0.705]
[1732276364366,2.72476022,3339.7,3339.0,0.705]
[1732276364931,5.71910022,3339.7,3339.0,0.705]
[1732276365144,3.59609524,3339.7,3339.0,0.4059]
[1732276365435,2.99532,3338.6,3337.6,0.4059]
[1732276365610,5.71988022,3338.8,3337.6,0.4059]
[1732276366320,6.47770022,3339.2,3337.6,0.705]
[1732276366495,6.47770022,3339.2,3337.3,0.02995959]
[1732276366496,5.71950022,3339.2,3337.9,0.4059]
[1732276367635,2.99482,3339.1,3337.9,0.4059]
[1732276367806,2.72476022,3339.2,3337.9,0.4059]
[1732276367988,2.99452,3339.5,3337.9,0.4059]
[1732276368191,2.99438,3339.6,3338.1,0.2991]
[1732276368431,2.99438,3339.6,3338.5,0.705]
[1732276368643,2.99423,3339.8,3338.6,0.4059]
[1732276369103,2.99429,3339.7,3338.6,0.4059]
[1732276369753,2.99438,3339.6,3338.6,0.4059]
[1732276370562,2.99423,3339.8,3338.7,0.4059]
[1732276371478,2.9941,3339.9,3338.7,0.4059]
[1732276371635,2.99428,3339.7,3338.7,0.4059]
[1732276371842,3.64595002,3339.9,3338.7,0.4059]
[1732276372476,2.99392,3340.1,3338.8,0.4059]
[1732276372675,5.71863022,3340.2,3338.8,0.4059]
[1732276372978,2.99407,3340.0,3338.8,0.4059]
[1732276373165,5.71867022,3340.2,3338.8,0.4059]
[1732276373475,6.47885075,3340.2,3338.8,0.4059]
[1732276374180,2.72476022,3340.2,3338.8,0.4059]
[1732276374487,2.9937,3340.4,3339.0,0.705]
[1732276374659,2.9937,3340.4,3339.1,0.4059]
[1732276374973,2.9937,3340.4,3338.4,5.72476022]
[1732276374974,2.9937,3340.4,3339.3,0.4059]
[1732276375379,5.98743,3340.4,3339.3,0.4059]
[1732276375881,5.71837022,3340.5,3339.3,0.4059]
[1732276376181,5.71808022,3340.8,3339.3,0.4059]
[1732276376379,0.24567242,3340.7,3339.3,0.4059]
[1732276376555,2.99342,3340.7,3339.3,0.4059]
[1732276378089,2.72476022,3340.8,3339.3,0.4059]
[1732276378324,5.71812022,3340.8,3339.3,0.4059]
[1732276378526,1.02058151,3340.7,3339.3,0.4059]
[1732276378715,4.01396151,3340.7,3339.3,0.4059]
[1732276379888,1.02058151,3340.7,3339.3,0.4059]
[1732276380090,2.72476022,3340.8,3339.3,0.4059]
[1732276380594,5.71805022,3340.8,3339.3,0.4358411]
[1732276380816,5.71805022,3340.8,3339.3,0.4059]
[1732276380817,5.71806022,3340.8,3339.3,0.4059]
[1732276381121,2.72476022,3340.8,3339.3,0.4059]
[1732276381465,0.70385493,3341.0,3339.3,0.4059]
[1732276381466,5.71837022,3340.5,3339.3,0.4059]
[1732276381743,2.72476022,3340.5,3339.3,0.4059]
[1732276382108,2.72476022,3340.2,3339.3,0.4059]
[1732276382448,2.72476022,3340.5,3339.3,0.4059]
[1732276382646,3.10707622,3340.5,3339.3,0.4059]
[1732276382857,2.72476022,3340.5,3339.3,0.4059]
[1732276383665,2.72476022,3340.2,3339.3,0.4059]
[1732276383864,5.71860022,3340.2,3339.3,0.4059]
[1732276384510,2.99384,3340.2,3339.3,0.4059]
[1732276384628,3.56570002,3340.2,3339.3,0.4059]
[1732276385028,2.99408,3340.0,3339.4,0.2991]
[1732276385365,2.99415,3339.9,3339.3,0.705]
[1732276385550,8.71271022,3340.1,3339.3,0.705]
[1732276385865,2.99402,3340.0,3339.3,0.705]
[1732276386224,0.57187802,3339.9,3339.3,0.705]
[1732276386632,3.56598802,3339.9,3339.4,0.06]
[1732276387962,0.57187802,3339.9,3339.4,0.06]
[1732276388740,3.56603802,3339.9,3339.4,0.06]
[1732276388963,2.99422,3339.8,3339.4,0.06]
[1732276389171,3.56603802,3339.9,3339.4,0.06]
[1732276389655,2.99424,3339.8,3339.4,0.06]
[1732276390233,0.57187802,3339.9,3339.4,0.06]
[1732276390477,5.71872022,3340.1,3339.4,0.06]
[1732276390478,2.99396,3340.1,3339.4,0.06]
[1732276390643,2.99406,3340.0,3339.4,0.06]
[1732276391363,3.54389,3340.2,3339.4,0.06]
[1732276391539,3.99887302,3340.1,3339.4,0.06]
[1732276391931,2.99402,3340.0,3339.4,0.06]
[1732276392342,2.99411,3339.9,3339.4,0.06]
[1732276392764,6.99286302,3340.1,3339.4,0.06]
[1732276393043,0.4548873,3340.0,3339.4,0.06]
[1732276393773,3.4489473,3340.0,3339.4,0.06]
[1732276393934,2.99417,3339.9,3339.4,0.06]
[1732276394337,2.99419,3339.8,3339.4,0.06]
[1732276394761,0.55,3340.3,3339.4,0.06]
[1732276394962,2.99409,3340.0,3339.4,0.06]
[1732276395296,2.99412,3339.9,3339.4,0.06]
[1732276395651,2.72476022,3340.0,3339.4,0.06]
[1732276395854,3.26657602,3339.9,3339.4,0.06]
[1732276396353,2.99419,3339.8,3339.4,0.06]
[1732276396575,3.26657602,3339.9,3339.4,0.06]
[1732276396576,6.26073602,3339.9,3339.4,0.06]
[1732276396775,2.9942,3339.8,3339.4,0.06]
[1732276397152,2.99436,3339.7,3339.4,0.06]
[1732276397873,0.51890725,3339.8,3339.4,0.06]
[1732276398079,0.27247602,3339.9,3339.4,0.06]
[1732276398256,0.55,3340.1,3339.4,0.06]
[1732276398453,0.24614792,3340.0,3339.4,0.06]
[1732276398857,0.55,3340.1,3339.4,0.06]
[1732276399092,3.54395,3340.1,3339.4,0.06]
[1732276399398,3.37526424,3340.3,3339.4,0.06]
[1732276399641,3.24001059,3340.2,3339.4,0.06]
[1732276399783,0.24618059,3340.1,3339.4,0.06]
[1732276400132,2.99403,3340.0,3339.4,0.06]
[1732276400280,3.95496048,3340.0,3339.4,0.06]
[1732276400487,2.9941,3339.9,3339.4,0.06]
[1732276403992,2.99422,3339.8,3339.4,0.06]
[1732276404188,3.95496048,3340.0,3339.4,0.06]
[1732276404828,2.99412,3339.9,3339.4,0.06]
[1732276405001,2.99423,3339.8,3339.4,0.06]
[1732276405588,2.99383,3340.2,3339.4,0.06]
[1732276405789,2.99419,3339.8,3339.4,0.06]
[1732276406223,2.99401,3340.0,3339.4,0.06]
[1732276406629,0.24624969,3339.9,3339.4,0.06]
[1732276406837,0.24624969,3340.0,3339.4,0.06]
[1732276406988,0.99130642,3340.0,3339.4,0.06]
[1732276407202,0.24624951,3339.9,3339.4,0.06]
[1732276407723,0.99130642,3340.0,3339.4,0.06]
[1732276408098,3.3120439,3340.6,3339.4,0.06]
[1732276408099,3.3055639,3340.6,3339.5,0.4059]
[1732276408298,3.52546022,3340.7,3339.5,0.4059]
[1732276408299,0.24628276,3340.5,3339.6,0.2987]
[1732276408494,0.24628276,3340.4,3340.0,0.2987]
[1732276408745,5.71793022,3341.0,3340.1,0.4059]
[1732276408746,2.99317,3341.0,3340.1,0.4059]
[1732276409049,0.24632604,3340.9,3340.1,0.4059]
[1732276410239,3.23954604,3340.9,3340.1,0.4059]
[1732276410544,0.24632604,3340.8,3340.1,0.4059]
[1732276410867,0.24632604,3340.7,3340.1,0.4059]
[1732276411036,5.71789022,3341.0,3340.1,0.4059]
[1732276411234,0.24619534,3340.9,3340.1,0.7046]
[1732276412003,3.23939534,3340.9,3340.1,0.7046]
[1732276412302,0.24619534,3340.8,3340.1,0.7046]
[1732276413511,3.23951534,3340.8,3340.1,0.7046]
[1732276413837,2.72476022,3341.0,3340.1,0.7046]
[1732276413838,0.24619534,3340.7,3340.1,0.7046]
[1732276414052,5.71793022,3341.0,3340.1,0.7046]
[1732276414225,0.24607196,3340.9,3340.1,0.7046]
[1732276415848,5.71788022,3341.0,3340.1,0.7046]
[1732276416141,0.24598313,3340.9,3340.1,0.7046]
[1732276416842,3.23921313,3340.9,3340.1,0.7046]
[1732276417047,2.99323,3340.9,3340.1,0.7046]
[1732276417204,2.72476022,3341.0,3340.1,0.7046]
[1732276417400,0.24591727,3340.9,3340.1,0.7046]
[1732276417627,2.72476022,3341.0,3340.1,0.7046]
[1732276417844,2.72476022,3341.0,3340.2,0.4059]
[1732276419220,0.55,3341.3,3340.3,0.4059]
[1732276419408,0.55,3341.3,3340.4,0.2987]
[1732276419950,0.55,3341.3,3340.6,0.2987]
[1732276421042,1.0,3341.4,3339.8,0.029938]
[1732276421043,1.0,3341.4,3340.7,0.7046]
[1732276421707,2.99291,3341.3,3340.7,0.7046]
[1732276422314,2.99294,3341.2,3340.7,0.7046]
[1732276422513,3.691504,3341.2,3340.7,0.7046]
[1732276422809,6.98557,3341.4,3340.7,0.7046]
[1732276423022,3.99275,3341.4,3340.7,0.7046]
[1732276423346,1.0,3341.4,3340.8,0.7046]
[1732276423736,1.0,3341.4,3341.3,0.2987]
[1732276423935,1.0,3341.4,3341.3,0.7046]
[1732276425219,1.0,3341.4,3341.3,0.2987]
[1732276425421,1.18127,3341.4,3340.5,0.2987]
[1732276425611,1.0,3341.4,3340.5,0.2987]
[1732276425818,1.0,3341.4,3339.9,3.0]
[1732276425819,1.0,3341.4,3340.7,0.2987]
[1732276426580,2.99292,3341.3,3340.7,0.2987]
[1732276426870,2.99302,3341.1,3340.7,0.2987]
[1732276427224,2.99302,3341.1,3340.6,0.4059]
[1732276427225,2.99312,3341.0,3340.6,0.4059]
[1732276428222,2.99285,3341.3,3340.6,0.4059]
[1732276428426,0.67176102,3341.3,3340.6,0.7046]
[1732276428676,1.0,3341.4,3340.6,0.7046]
[1732276429171,1.0,3341.4,3340.7,0.4059]
[1732276433559,1.0,3341.4,3340.8,0.2987]
[1732276434361,1.399268,3341.4,3340.8,0.2987]
[1732276434590,1.0,3341.4,3340.8,0.2987]
[1732276436095,3.99276,3341.4,3340.8,0.2987]
[1732276436787,1.0,3341.4,3340.8,0.2987]
[1732276438191,1.0,3341.4,3340.2,0.2987]
[1732276438389,1.0,3341.4,3340.9,0.4059]
[1732276442298,1.0,3341.4,3340.9,0.7046]
[1732276443179,1.0,3341.4,3340.9,0.4059]
[1732276443491,1.0,3341.4,3341.0,0.2987]
[1732276443712,1.0,3341.4,3340.4,0.02993336]
[1732276443713,1.0,3341.4,3341.2,0.2987]
[1732276448813,1.0,3341.4,3340.1,0.2987]
[1732276449019,1.0,3341.4,3340.5,0.2987]
[1732276449582,1.0,3341.4,3340.7,0.2987]
[1732276450374,1.0,3341.4,3340.2,0.27247602]
[1732276450375,1.0,3341.4,3340.9,0.2987]
[1732276450619,2.99285,3341.3,3340.8,0.4059]
[1732276450921,2.9932,3340.9,3340.8,0.2987]
[1732276451080,3.8165,3340.9,3340.8,0.2987]
[1732276451279,3.8165,3340.9,3340.2,0.4059]
[1732276451280,2.99372,3340.4,3340.2,0.4059]
[1732276451526,2.99372,3340.4,3338.6,0.02993917]
[1732276451527,2.99379,3340.3,3339.6,0.2987]
[1732276451676,3.75509,3340.3,3339.6,0.2987]
[1732276451880,0.7613,3340.3,3339.6,0.2987]
[1732276452899,0.76350476,3341.2,3339.6,0.2987]
[1732276452900,5.71826022,3340.6,3339.6,0.2987]
[1732276453105,0.65480602,3340.5,3339.6,0.2987]
[1732276453612,2.99349,3340.6,3339.6,0.2987]
[1732276453826,0.8298,3340.7,3339.6,0.2987]
[1732276454028,3.82321,3340.7,3339.6,0.2987]
[1732276454339,2.99349,3340.6,3339.6,0.2987]
[1732276454547,2.99358,3340.5,3339.6,0.2987]
[1732276455245,2.99358,3340.5,3339.5,0.4059]
[1732276455599,2.99368,3340.4,3339.5,0.4059]
[1732276456722,0.68167,3340.6,3339.5,0.4059]
[1732276456906,3.67521,3340.6,3339.5,0.4059]
[1732276457451,0.68167,3340.6,3339.5,0.4059]
[1732276457813,0.68167,3340.6,3338.9,0.4059]
[1732276457814,2.99421,3339.8,3338.9,0.4059]
[1732276458307,2.99446,3339.5,3338.9,0.4059]
[1732276458753,0.8132,3340.9,3339.4,0.4659]
[1732276458907,0.380633,3340.8,3339.6,0.7046]